Cogmind - Beta 14 @@@ ROGUE MODE // 2024.11.28 @ 17:03:44 Player: Nicky Result: Self-destructed Performance ------------- Evolutions (1) 500 Regions Visited (2) 400 Robots Destroyed (16) 80 Value Destroyed (435) 435 Prototype IDs (0) 0 Alien Tech Used (0) 0 Bonus (200) 200 TOTAL SCORE: 1615 Bonus ------- Pacifist 200 Cogmind --------- Core Integrity 283/400 Matter 300/300 Energy 265/265 System Corruption 2% Temperature Cool (0) Movement Rolling (115) Ox1 Location -9/Materials Parts ------- > --- POWER (1) -------- Improved Ion Engine > --- PROPULSION (3) --- Light Treads Compact Wheel > --- UTILITY (3) ------ Medium Storage Unit Weight Redist. System Light Armor Plating > --- WEAPON (2) ------- Shotgun Shotgun > --- INVENTORY (10) --- Ion Engine Wheel Improved Heat Sink Sensor Array Signal Interpreter Light Armor Plating Light Armor Plating Shotgun Rocket Launcher Hammer Peak State ------------ > --- POWER ------------ Improved Ion Engine > --- PROPULSION ------- Light Treads Compact Wheel Compact Wheel > --- UTILITY ---------- Medium Storage Unit Weight Redist. System Light Armor Plating > --- WEAPON ----------- Assault Rifle Heavy Assault Rifle > --- INVENTORY -------- Ion Engine Light Treads Aluminum Leg Aluminum Leg Improved Heat Sink Light Armor Plating Assault Rifle Assault Rifle Rocket Launcher Hammer [Rating: 13] Favorites ----------- Power Ion Engine Engine Ion Engine Propulsion Light Treads Treads Light Treads Wheel Compact Wheel Utility Weight Redist. System Device Weight Redist. System Storage Medium Storage Unit Protection Light Armor Plating Weapon Assault Rifle Ballistic Gun Assault Rifle Build | -11 -10 -9 ------- Run | Yrd Mat Mat Slots Evolved 2 | . . 2 Power . | . . . Propulsion 1 | . . 1 Utility 1 | . . 1 Weapon . | . . . Parts Attached 25 | 6 . 19 Power 2 | 1 . 1 Engine 2 | 1 . 1 Core . | . . . Reactor . | . . . Propulsion 9 | 2 . 7 Treads 4 | . . 4 Leg . | . . . Wheel 5 | 2 . 3 Hover . | . . . Flight . | . . . Utility 6 | 1 . 5 Device 1 | . . 1 Storage 2 | 1 . 1 Processor . | . . . Hackware . | . . . Protection 3 | . . 3 Artifact . | . . . Weapon 8 | 2 . 6 Energy Gun . | . . . Energy Cannon . | . . . Ballistic Gun 8 | 2 . 6 Ballistic Cannon . | . . . Launcher . | . . . Special Weapon . | . . . Impact Weapon . | . . . Slashing Weapon . | . . . Piercing Weapon . | . . . Special Melee Weapon . | . . . Unidentified Prototypes . | . . . Parts Lost 2 | . . 2 Power . | . . . Propulsion . | . . . Utility 1 | . . 1 Weapon 1 | . . 1 Highest Loss Streak 2 | . . 2 To Critical Strikes . | . . . Average Slot Usage (%) 90 | . 85 91 Engine 11 | . 14 11 Treads 14 | . . 16 Wheel 16 | . 28 15 Device 8 | . . 9 Storage 11 | . 14 11 Protection 5 | . . 5 Ballistic Gun 22 | . 28 22 Peak Build Rating 13 | 6 6 13 Average Rating 9 | 4 6 10 On Entrance 4 | . 6 6 Naked Turns . | . . . Heaviest Build 26 | 14 14 26 Greatest Support 46 | 26 26 46 Greatest Overweight (x) 1 | . . 1 Average Overweight (x) . | . . . Largest Inventory Capacity 10 | 8 8 10 Average Capacity 9 | 6 8 9 Most Carried 10 | 6 7 10 Average Carried 8 | 2 6 9 Final Capacity 10 | 8 8 10 Final Carried 10 | 6 7 10 Class Distribution -------------------- 64% | Mutant 35% | Scavenger-Mutant Dominant Class ---------------- Mutant | -10/Materials Mutant | -9/Materials Resources | -11 -10 -9 ----------- Run | Yrd Mat Mat Matter Collected 694 | 191 . 503 Remotely . | . . . Salvage Created 568 | . . 568 Parts 41 | . . 41 Haulers Intercepted 1 | . . 1 Recyclers Shooed . | . . . Parts Field Recycled . | . . . Retrieved Matter . | . . . Parts Self-Destructed . | . . . Prevented . | . . . Kills | -11 -10 -9 ------- Run | Yrd Mat Mat Combat Hostiles Destroyed 13 | . . 13 Guns 13 | . . 13 Classes Destroyed 6 | . . 6 Hauler 1 | . . 1 Operator 1 | . . 1 Watcher 1 | . . 1 Swarmer 5 | . . 5 Grunt 2 | . . 2 Sentry 6 | . . 6 Best Kill Streak 4 | . . 4 Combat Bots Only 4 | . . 4 Max Kills in Single Turn 2 | . . 2 Gunslinging 1 | . . 1 Exploded . | . . . Melee . | . . . Uniques/NPCs Destroyed . | . . . Combat | -11 -10 -9 -------- Run | Yrd Mat Mat Hostile Shots Fired 105 | . 1 104 Missed 27 | . . 27 Damage Taken 885 | . 12 873 Core 129 | . 12 117 Absorbed by Shields . | . . . Core Remaining (%) 97 | 100 95 . Volleys Fired 42 | . . 42 Largest 2 | . . 2 Hottest 43 | . . 43 Shots Fired 82 | . . 82 Gun 82 | . . 82 Cannon . | . . . Launcher . | . . . Special . | . . . Kinetic 82 | . . 82 Thermal . | . . . Explosive . | . . . Electromagnetic . | . . . Robot Hit Streak 13 | . . 13 Robot Miss Streak 4 | . . 4 Penetration Max . | . . . Secondary Targets 5 | . . 5 Max Gunslinging Chain 1 | . . 1 Shots Hit Robots 57 | . . 57 Core Hits 26 | . . 26 Critical Kills . | . . . Critical Parts Destroyed . | . . . Critical Strikes . | . . . Melee Attacks . | . . . Impact . | . . . Slashing . | . . . Piercing . | . . . Sneak Attacks . | . . . Combat Hostiles . | . . . Follow-up Attacks . | . . . Damage Inflicted 789 | . . 789 Guns 789 | . . 789 Cannons . | . . . Explosions . | . . . Melee . | . . . Ramming . | . . . Kinetic 789 | . . 789 Thermal . | . . . Explosive . | . . . Electromagnetic . | . . . Impact . | . . . Slashing . | . . . Piercing . | . . . Highest Corruption 2 | . . 2 Average Corruption 2 | . . 2 Corruption Purged . | . . . Corruption Blocked . | . . . Effects 9 | . . 9 Message Errors 2 | . . 2 Matter Fused 1 | . . 1 Heat Flow Errors 2 | . . 2 Energy Discharges 2 | . . 2 Weapon Failures 2 | . . 2 Overload Shots . | . . . Overflow Damage . | . . . Projectiles . | . . . Explosions . | . . . Melee . | . . . Knockbacks . | . . . Impact . | . . . Kinetic . | . . . Secondary . | . . . Self-Inflicted Damage . | . . . Shots . | . . . Rammed . | . . . Targets Rammed . | . . . Kicked . | . . . Crushed . | . . . Highest Temperature 145 | . . 145 Average Temperature 55 | . . 55 Received Heat Transfer 222 | . 6 216 Siege Activations . | . . . Robots Corrupted . | . . . Combat Hostiles . | . . . Parts Fried . | . . . Impact Corruptions . | . . . Robots Melted . | . . . Combat Hostiles . | . . . Parts Melted . | . . . Heat Transferred . | . . . Parts Sabotaged . | . . . Parts Stolen . | . . . Parts Stripped . | . . . Power Chain Reactions . | . . . Alert | -11 -10 -9 ------- Run | Yrd Mat Mat Peak Influence 358 | . 45 358 Initial 18 | . . 18 Average 130 | . 9 164 Maximum Alert Level 1 | . . 1 Low Security (%) 75 | 100 100 68 Level 1 24 | . . 31 Level 2 . | . . . Level 3 . | . . . Level 4 . | . . . Level 5 . | . . . High Security . | . . . Max Security . | . . . Squads Dispatched 2 | . 2 . Investigation . | . . . Extermination . | . . . Reinforcement 2 | . 2 . Assault . | . . . Garrison . | . . . Intercept . | . . . Searches Triggered . | . . . Construction Impeded . | . . . Haulers Reinforced . | . . . Active Scanning Responses . | . . . Cargo Convoy Interrupts . | . . . Stealth | -11 -10 -9 --------- Run | Yrd Mat Mat Distress Signals 5 | . 1 4 Communications Jammed . | . . . Distress Signals . | . . . Times Spotted 31 | . 7 24 Peak Tracking Total 11 | . 5 11 Tactical Retreats 3 | . 1 2 Traps | -11 -10 -9 ------- Run | Yrd Mat Mat Traps Triggered 1 | . . 1 Indirectly . | . . . Trap Hack Attempts . | . . . Triggered . | . . . Disarmed . | . . . Reprogrammed . | . . . Reused . | . . . Traps Extracted . | . . . Installed . | . . . Triggered . | . . . Machines | -11 -10 -9 ---------- Run | Yrd Mat Mat Machines Disabled . | . . . Max in Single Turn . | . . . Machines Repaired . | . . . Machines Dismantled . | . . . Machines Sabotaged . | . . . Overloaded Fab Kills . | . . . Hacking | -11 -10 -9 --------- Run | Yrd Mat Mat Machines Accessed 4 | . . 4 Terminals 4 | . . 4 Fabricators . | . . . Repair Stations . | . . . Recycling Units . | . . . Scanalyzers . | . . . Garrison Access . | . . . Total Hacks 16 | . . 16 Successful 8 | . . 8 Failed 8 | . . 8 Catastrophic 1 | . . 1 Database Lockouts . | . . . Manual 6 | . . 6 Terminals 16 | . . 16 Fabricators . | . . . Repair Stations . | . . . Recycling Units . | . . . Scanalyzers . | . . . Garrison Access . | . . . Terminal Hacks 5 | . . 5 Terminal Index 1 | . . 1 Alert Level 1 | . . 1 Locate Traps 1 | . . 1 Transport Status 1 | . . 1 Hauler Manifests 1 | . . 1 Fabricator Hacks . | . . . Repair Station Hacks . | . . . Recycling Unit Hacks . | . . . Scanalyzer . | . . . Garrison Access Hacks . | . . . Unauthorized Hacks 3 | . . 3 Terminals 3 | . . 3 Botnet 3 | . . 3 Fabricators . | . . . Repair Stations . | . . . Recycling Units . | . . . Scanalyzers . | . . . Garrison Access . | . . . Data Cores Recovered 1 | . . 1 Used . | . . . Hacking Detections 4 | . . 4 Full Trace Events . | . . . Feedback Events . | . . . Feedback Blocked . | . . . Robot Schematics Acquired . | . . . Robots Built . | . . . Authchips . | . . . Time . | . . . Total Robot Build Rating . | . . . Part Schematics Acquired . | . . . Parts Built . | . . . Authchips . | . . . Time . | . . . Total Part Build Rating . | . . . Parts Repaired . | . . . Time . | . . . Parts Recycled . | . . . Recycled Matter . | . . . Retrieved Matter . | . . . Retrieved Components . | . . . Parts Scanalyzed . | . . . Part Schematics Acquired . | . . . Parts Damaged . | . . . Bothacking | -11 -10 -9 ------------ Run | Yrd Mat Mat Used RIF Installer . | . . . Robots Hacked . | . . . Non-combat . | . . . Combat . | . . . Robot Hacks Applied . | . . . Relay Couplers Released . | . . . Fabnet Peak Effective % . | . . . Robots Rewired . | . . . Allies Hacked . | . . . Hacks Repelled . | . . . Allies | -11 -10 -9 -------- Run | Yrd Mat Mat Total Allies . | . . . Largest Group . | . . . Highest-Rated Group . | . . . Highest-Rated Ally . | . . . Total Orders . | . . . Ally Attacks . | . . . Total Damage . | . . . Kills . | . . . Allies Corrupted . | . . . Allies Melted . | . . . Intel | -11 -10 -9 ------- Run | Yrd Mat Mat Robot Analysis Total . | . . . Derelict Logs Recovered . | . . . Drone Launches . | . . . Drone Recoveries . | . . . Exploration | -11 -10 -9 ------------- Run | Yrd Mat Mat Turns Passed 682 | 65 79 538 Spaces Moved 467 | 47 87 333 Core 4 | 4 . . Treads 10 | . . 10 Legs . | . . . Wheels 453 | 43 87 323 Hover . | . . . Flight . | . . . Fastest Speed 50 | 50 90 90 Average Speed 98 | 87 90 101 Slowest Speed 160 | 100 90 160 Overloaded Moves . | . . . Propulsion Burnouts . | . . . Robots Hopped . | . . . Cave-ins Triggered . | . . . Exploration Rate (%) 23 | 3 34 34 Regions Visited 2 Branch Regions . Pre-discovered Areas . | . . . Known Exits Taken . | . . . Unknown Exits Taken 2 | 1 1 . Scrap Searched . | . . . Spaces Dug . | . . . Terrain Destroyed . | . . . Melee . | . . . Projectile . | . . . AOE . | . . . Terrain Rammed . | . . . Walls Destroyed . | . . . Machines Disabled . | . . . Actions | -11 -10 -9 --------- Run | Yrd Mat Mat Total 610 | 67 87 456 Wait 39 | 9 . 30 Move 465 | 46 86 333 Hop . | . . . Pick Up 21 | 6 1 14 Fast Attach 9 | 6 . 3 Attach 2 | . . 2 Detach . | . . . Swap 14 | . . 14 Drop 18 | . . 18 Fire 42 | . . 42 Melee . | . . . Ram . | . . . Kick . | . . . Crush . | . . . Escape Stasis . | . . . Rewire . | . . . Trap . | . . . Miscellaneous . | . . . Route ------- -11/Scrapyard -10/Materials -9/Materials History --------- Turn | Location | Event 40 | -11/Scrapyard | Discovered new exit (range 14) 66 | -11/Scrapyard | Entered Materials 131 | -10/Materials | Discovered new exit (range 16) 145 | -10/Materials | Entered another Materials area 145 | -9/Materials | Evolved 2 slots: Propulsion x1, Utility x1 300 | -9/Materials | Build established: Mutant 683 | -9/Materials | Self-destructed Last Messages --------------- 00639_ Switching to secondary target: Y-45 Defender. 00642_ Y-45 Defender destroyed. 00642_ Switching to secondary target: S-10 Pest. 00642_ S-10 Pest destroyed. 00645_ Dropped Lgt. Treads. 00647_ Acquired 53 matter. 00649_ Acquired Lgt. Armor Plating. 00651_ System corrupted: Energy discharge (-83). 00653_ Acquired Lgt. Armor Plating. 00656_ Acquired 45 matter. 00658_ Dropped Hvy. Assault Rifle. 00660_ Acquired 10 matter. 00662_ Dropped Assault Rifle. 00665_ Dropped Hvy. Assault Rifle. 00665_ U-05 Engineer builds a Door. 00667_ Dropped Assault Rifle. 00667_ Acquired Shotgun. 00672_ Acquired 12 matter. 00680_ Acquired 8 matter. 00680_ W-16 Scout sends out distress signal. Map ----- +----------------------------------------------------+ | ????????????????????? ###/#############/########+# | | ????????????????????? | | ????????????????????? | | ????????????????????? * | | ????????????????????????######### ############+# | | ????????????????????????????????# # !# "" * | | ????????????????????????????????# % # # ""S | | ????????????????????????????????# // """ # "" | | ????????????????????????????????# # """ # ]! | | ????????????????????????????????# # """ # ]! | | ????????????????????????????????# #? ## #### | | ?????????????##########?????????# ###########?? | | ?????????????# #?????????# # #?????" | | ?????????????# ########??# =#!""" #???# " | | ?????????????# # #??# *+%""" #???# " | | ????????????## # T #??# !# """ #???# | | ????????????# [[ # #??# #=""" #???# | | ????????????## [ [= # #??# # "" #???# | | ?????????????# [[*!# #??# ### #???# | | ?????????????# [%[ # #??#=#?# = #???# | | ?????????????# =* ####+###??# #?# % ##??### | | ?????????????######+#+## #??#!#?# = #????? | | ??????????????????#% #??# #?# ##????? | | ??????????????????# #??#=#?# "T" #?????? | | ??????????????????# #??#!#?# """ #?????? | | ??????????????????###### @%= #??# #?########?????? | | ???????????????????????### ###??# #??????????????? | | ?????????????????????????# #????# #?######???????? | | ???????????????????????### ###??# #? ????????? | | ???????????????????????# #### # """""????????? | | ???????????????????????# # """""????????? | | ???????????????????????+ T + """""????????? | | ???????????????????????# = # #?????? | | ???????????????????????# ###### """"" #?????? | | ???????????????????????## ##??????""""" #?????? | | ????????????????????????#^^^#???????"""""????????? | | ????????????????????????#^^^#???????? ?????????? | | ????????????????????????# #????????###?????????? | | ????????????????????????# #????????????????????? | | ???????????????????????? ????????????????????? | | ??????????????????????? ????????????????????? | | ??????????????????????? ????????????????????? | | ??????????????????????#####+#????????????????????? | | ?????????????????????????????????????????????????? | | ???????????????????????????????????????????####### | | ???????????????????????????????????????????# | | ???????????????????????????????????????????# | | ???????????????????????????????????????????# | | ???????????????????????????????????????????# | | ???????????????????????????????????????????# | +----------------------------------------------------+ Best States ------------- Heat Dissipation 28 Energy Generation 12 Energy Capacity 265 Matter Stores 300 Matter Capacity 300 Sight Range 16 Terrain Scan Density 10 Additional Mass Support 6 Armor Coverage 150 Evasion (%) 42 Recoil Reduction 2 Item Schematics ----------------- None Robot Schematics ------------------ None Fabricated ------------ Nothing Alien Tech Used ----------------- None Achievements -------------- None Challenges ------------ None Game ------ Seed RemoteProjectionConstruct Manual? 0 Play Time 00:12:19 Cumulative 19.5 hours Start 2024.11.15 @ 19:15:35 End 2024.11.28 @ 17:03:44 Sessions 3 Manual Loads 0 Difficulty Rogue Special Mode None Game No. 22 Rogue 22 Adventurer 0 Explorer 0 Win Type - Total 2 Types 1/0/0/1/0/0/0/0/0 Lore% 9 Gallery% 26 Achievement% 27 Wizard Run 0 Options --------- Layout 1 ASCII 0 Keyboard 0 Movement Arrows Keybinds 0 Fullscreen 1 Font 24/Smallcaps Map View 50x35 Zoom Use 5% Tactical HUD 1 Map Filters NONE Filters NONE Steam 1 RUN: d2a99996-126f-44d0-8bcb-5cd38c99bdf9